[Event "Titled Tuesday Blitz August 22 Late 2023"]
[White "Merino Garcia, Rafael II"]
[Black "Swicarz, Maciej"]
[WhiteFideId "2209128"]
[BlackFideId "1113585"]
[WhiteElo "2371"]
[BlackElo "2505"]
[Result "0-1"]
[Round "4"]
[TimeControl "180+1"]
[Date "2023.08.22"]
[WhiteClock "0:00:00"]
[BlackClock "0:00:02"]
[Board "145"]

1. d4 {[%clk 0:03:00]}  Nf6 {[%clk 0:02:59]} 2. Nf3 {[%clk 0:03:01]}  e6 {[%clk 0:02:58]} 3. g3 {[%clk 0:03:01]}  c5 {[%clk 0:02:58]} 4. c4 {[%clk 0:02:58]}  cxd4 {[%clk 0:02:56]} 5. Nxd4 {[%clk 0:02:59]}  d5 {[%clk 0:02:56]} 6. Bg2 {[%clk 0:02:57]}  Nc6 {[%clk 0:02:57]} 7. O-O {[%clk 0:02:53]}  Bc5 {[%clk 0:02:54]} 8. Nxc6 {[%clk 0:02:39]}  bxc6 {[%clk 0:02:55]} 9. Qc2 {[%clk 0:02:38]}  Bb6 {[%clk 0:02:39]} 10. b3 {[%clk 0:02:18]}  Bd4 {[%clk 0:02:33]} 11. Bb2 {[%clk 0:02:17]}  Bxb2 {[%clk 0:02:33]} 12. Qxb2 {[%clk 0:02:18]}  O-O {[%clk 0:02:33]} 13. Nc3 {[%clk 0:02:17]}  Ba6 {[%clk 0:02:32]} 14. Qa3 {[%clk 0:02:09]}  Qc8 {[%clk 0:02:26]} 15. Rac1 {[%clk 0:01:43]}  dxc4 {[%clk 0:02:23]} 16. bxc4 {[%clk 0:01:43]}  Bxc4 {[%clk 0:02:21]} 17. Qc5 {[%clk 0:01:43]}  Qa6 {[%clk 0:02:02]} 18. Qxc6 {[%clk 0:01:27]}  Bxe2 {[%clk 0:01:31]} 19. Nxe2 {[%clk 0:01:18]}  Qxe2 {[%clk 0:01:30]} 20. Qxa8 {[%clk 0:01:17]}  Rxa8 {[%clk 0:01:31]} 21. Bxa8 {[%clk 0:01:17]}  g5 {[%clk 0:01:29]} 22. a4 {[%clk 0:01:15]}  h5 {[%clk 0:01:08]} 23. a5 {[%clk 0:01:01]}  h4 {[%clk 0:01:06]} 24. Rc3 {[%clk 0:00:50]}  h3 {[%clk 0:00:56]} 25. Bf3 {[%clk 0:00:45]}  Qd2 {[%clk 0:00:51]} 26. Rfc1 {[%clk 0:00:43]}  g4 {[%clk 0:00:45]} 27. Bh1 {[%clk 0:00:37]}  Kg7 {[%clk 0:00:43]} 28. a6 {[%clk 0:00:37]}  Qe2 {[%clk 0:00:41]} 29. Rc7 {[%clk 0:00:34]}  Qxa6 {[%clk 0:00:25]} 30. R7c4 {[%clk 0:00:33]}  Qa2 {[%clk 0:00:23]} 31. Rf4 {[%clk 0:00:32]}  e5 {[%clk 0:00:21]} 32. Rfc4 {[%clk 0:00:29]}  Qd2 {[%clk 0:00:19]} 33. Bc6 {[%clk 0:00:28]}  e4 {[%clk 0:00:18]} 34. R4c3 {[%clk 0:00:25]}  e3 {[%clk 0:00:16]} 35. fxe3 {[%clk 0:00:24]}  Nd5 {[%clk 0:00:15]} 36. Bxd5 {[%clk 0:00:24]}  Qxd5 {[%clk 0:00:15]} 37. R3c2 {[%clk 0:00:22]}  Qf3 {[%clk 0:00:14]} 38. Re1 {[%clk 0:00:20]}  a5 {[%clk 0:00:12]} 39. Rf2 {[%clk 0:00:20]}  Qe4 {[%clk 0:00:11]} 40. Rf4 {[%clk 0:00:20]}  Qe6 {[%clk 0:00:11]} 41. Ref1 {[%clk 0:00:19]}  Qd7 {[%clk 0:00:08]} 42. Rd4 {[%clk 0:00:17]}  Qe6 {[%clk 0:00:05]} 43. Kf2 {[%clk 0:00:16]}  Qa2+ {[%clk 0:00:01]} 44. Ke1 {[%clk 0:00:14]}  Qb1+ {[%clk 0:00:02]} 45. Ke2 {[%clk 0:00:14]}  Qb2+ {[%clk 0:00:02]} 46. Rd2 {[%clk 0:00:15]}  Qb5+ {[%clk 0:00:02]} 47. Ke1 {[%clk 0:00:14]}  Qb1+ {[%clk 0:00:02]} 48. Ke2 {[%clk 0:00:14]}  Qb5+ {[%clk 0:00:02]} 49. Rd3 {[%clk 0:00:12]}  a4 {[%clk 0:00:02]} 50. Rf4 {[%clk 0:00:12]}  f5 {[%clk 0:00:01]} 51. Kd2 {[%clk 0:00:10]}  Qb2+ {[%clk 0:00:01]} 52. Kd1 {[%clk 0:00:09]}  a3 {[%clk 0:00:02]} 53. Rc4 {[%clk 0:00:07]}  a2 {[%clk 0:00:02]} 54. Rc7+ {[%clk 0:00:06]}  Kf6 {[%clk 0:00:02]} 55. Rc6+ {[%clk 0:00:04]}  Ke5 {[%clk 0:00:02]} 56. Rc5+ {[%clk 0:00:00]}  Ke4 {[%clk 0:00:02]} 0-1


[Site "https://www.chess.com"]

[Event "Titled Tuesday Blitz August 22 Late 2023"]
[White "only_strong_moves"]
[Black "Gaboyan, Susanna"]
[BlackFideId "13303627"]
[WhiteElo "2505"]
[BlackElo "2369"]
[Result "1-0"]
[Round "4"]
[TimeControl "180+1"]
[Date "2023.08.22"]
[WhiteClock "0:02:27"]
[BlackClock "0:00:00"]
[Board "146"]

1. d4 {[%clk 0:03:00]}  Nf6 {[%clk 0:02:57]} 2. Nc3 {[%clk 0:03:01]}  d5 {[%clk 0:02:57]} 3. Bf4 {[%clk 0:03:02]}  c6 {[%clk 0:02:54]} 4. e3 {[%clk 0:03:02]}  Bf5 {[%clk 0:02:53]} 5. Nf3 {[%clk 0:03:02]}  e6 {[%clk 0:02:54]} 6. Ne5 {[%clk 0:03:03]}  Bd6 {[%clk 0:02:54]} 7. g4 {[%clk 0:02:58]}  Bxe5 {[%clk 0:02:47]} 8. dxe5 {[%clk 0:02:50]}  Nxg4 {[%clk 0:02:41]} 9. Rg1 {[%clk 0:02:48]}  Qh4 {[%clk 0:02:39]} 10. Bg3 {[%clk 0:02:48]}  Qh6 {[%clk 0:02:38]} 11. Bf4 {[%clk 0:02:45]}  Qh4 {[%clk 0:02:38]} 12. Bg3 {[%clk 0:02:45]}  Qh5 {[%clk 0:02:39]} 13. h3 {[%clk 0:02:42]}  Bxc2 {[%clk 0:01:55]} 14. Qxg4 {[%clk 0:02:26]}  Qxg4 {[%clk 0:00:00]} 15. hxg4 {[%clk 0:02:27]} 1-0


[Site "https://www.chess.com"]

[Event "Titled Tuesday Blitz August 22 Late 2023"]
[White "Jakubowska, Anna"]
[Black "Van Foreest, Machteld"]
[WhiteFideId "1121952"]
[BlackFideId "1051563"]
[WhiteElo "2364"]
[BlackElo "2502"]
[Result "0-1"]
[Round "4"]
[TimeControl "180+1"]
[Date "2023.08.22"]
[WhiteClock "0:00:19"]
[BlackClock "0:00:26"]
[Board "147"]

1. e4 {[%clk 0:02:59]}  c5 {[%clk 0:02:59]} 2. Nc3 {[%clk 0:02:58]}  g6 {[%clk 0:02:58]} 3. g3 {[%clk 0:02:58]}  Bg7 {[%clk 0:02:58]} 4. Bg2 {[%clk 0:02:59]}  e6 {[%clk 0:02:58]} 5. d3 {[%clk 0:02:58]}  Ne7 {[%clk 0:02:58]} 6. Be3 {[%clk 0:02:58]}  Na6 {[%clk 0:02:51]} 7. Qd2 {[%clk 0:02:54]}  d5 {[%clk 0:02:50]} 8. exd5 {[%clk 0:02:53]}  exd5 {[%clk 0:02:51]} 9. Bh6 {[%clk 0:02:53]}  O-O {[%clk 0:02:49]} 10. h4 {[%clk 0:02:52]}  Nf5 {[%clk 0:02:41]} 11. Bxg7 {[%clk 0:02:50]}  Nxg7 {[%clk 0:02:41]} 12. Nxd5 {[%clk 0:02:43]}  Re8+ {[%clk 0:02:41]} 13. Ne2 {[%clk 0:02:43]}  Bg4 {[%clk 0:02:41]} 14. Nf4 {[%clk 0:02:38]}  Bxe2 {[%clk 0:02:35]} 15. Nxe2 {[%clk 0:02:36]}  Qe7 {[%clk 0:02:34]} 16. Bf3 {[%clk 0:02:34]}  Nf5 {[%clk 0:02:30]} 17. O-O-O {[%clk 0:02:31]}  Qf6 {[%clk 0:02:21]} 18. Nf4 {[%clk 0:02:17]}  Nd4 {[%clk 0:02:11]} 19. Bg2 {[%clk 0:02:09]}  Nb4 {[%clk 0:02:09]} 20. Nd5 {[%clk 0:01:55]}  Nxd5 {[%clk 0:01:43]} 21. Bxd5 {[%clk 0:01:53]}  Re2 {[%clk 0:01:43]} 22. Qg5 {[%clk 0:01:43]}  Rxc2+ {[%clk 0:01:37]} 23. Kb1 {[%clk 0:01:43]}  Qb6 {[%clk 0:00:42]} 24. b3 {[%clk 0:01:39]}  Qa6 {[%clk 0:00:36]} 25. a4 {[%clk 0:01:28]}  Rxf2 {[%clk 0:00:36]} 26. h5 {[%clk 0:01:16]}  Rf5 {[%clk 0:00:29]} 27. Bxf7+ {[%clk 0:00:56]}  Rxf7 {[%clk 0:00:28]} 28. hxg6 {[%clk 0:00:43]}  Qxg6 {[%clk 0:00:28]} 29. Qe3 {[%clk 0:00:32]}  Qe6 {[%clk 0:00:27]} 30. Qg5+ {[%clk 0:00:19]}  Kh8 {[%clk 0:00:26]} 0-1


[Site "https://www.chess.com"]

[Event "Titled Tuesday Blitz August 22 Late 2023"]
[White "Martins, Bruno Andre Leite"]
[Black "Ozen, Batuhan"]
[WhiteFideId "1942255"]
[BlackFideId "6345123"]
[WhiteElo "2498"]
[BlackElo "2357"]
[Result "0-1"]
[Round "4"]
[TimeControl "180+1"]
[Date "2023.08.22"]
[WhiteClock "0:00:04"]
[BlackClock "0:00:13"]
[Board "150"]

1. e4 {[%clk 0:03:00]}  g6 {[%clk 0:02:58]} 2. d4 {[%clk 0:03:00]}  Bg7 {[%clk 0:02:59]} 3. Nc3 {[%clk 0:03:01]}  d6 {[%clk 0:02:58]} 4. Be3 {[%clk 0:03:01]}  Nf6 {[%clk 0:02:58]} 5. f3 {[%clk 0:03:01]}  Nbd7 {[%clk 0:02:50]} 6. Qd2 {[%clk 0:03:01]}  c5 {[%clk 0:02:47]} 7. Nge2 {[%clk 0:02:50]}  cxd4 {[%clk 0:02:46]} 8. Nxd4 {[%clk 0:02:50]}  h5 {[%clk 0:02:34]} 9. Be2 {[%clk 0:02:49]}  Ne5 {[%clk 0:02:33]} 10. O-O-O {[%clk 0:02:44]}  Bd7 {[%clk 0:02:31]} 11. h3 {[%clk 0:02:27]}  Rc8 {[%clk 0:02:29]} 12. Kb1 {[%clk 0:02:25]}  Nc4 {[%clk 0:02:23]} 13. Bxc4 {[%clk 0:02:24]}  Rxc4 {[%clk 0:02:24]} 14. g4 {[%clk 0:02:14]}  Qa5 {[%clk 0:02:14]} 15. Nb3 {[%clk 0:02:12]}  Qc7 {[%clk 0:02:08]} 16. g5 {[%clk 0:02:11]}  Nh7 {[%clk 0:01:59]} 17. Nd5 {[%clk 0:02:11]}  Qb8 {[%clk 0:01:44]} 18. Qd3 {[%clk 0:01:55]}  b5 {[%clk 0:01:40]} 19. Bd4 {[%clk 0:01:35]}  Bxd4 {[%clk 0:01:38]} 20. Nxd4 {[%clk 0:01:36]}  Nxg5 {[%clk 0:01:27]} 21. f4 {[%clk 0:01:29]}  Ne6 {[%clk 0:01:23]} 22. Nxe6 {[%clk 0:01:25]}  Bxe6 {[%clk 0:01:24]} 23. f5 {[%clk 0:01:21]}  Bxd5 {[%clk 0:01:15]} 24. Qxd5 {[%clk 0:01:18]}  g5 {[%clk 0:00:42]} 25. f6 {[%clk 0:01:05]}  exf6 {[%clk 0:00:41]} 26. Rhf1 {[%clk 0:01:04]}  Rh6 {[%clk 0:00:27]} 27. Rd2 {[%clk 0:00:40]}  Kf8 {[%clk 0:00:26]} 28. Rdf2 {[%clk 0:00:37]}  Kg7 {[%clk 0:00:24]} 29. Rf5 {[%clk 0:00:32]}  Rc5 {[%clk 0:00:19]} 30. Qd3 {[%clk 0:00:10]}  Re5 {[%clk 0:00:19]} 31. Qf3 {[%clk 0:00:07]}  Qd8 {[%clk 0:00:18]} 32. Rxe5 {[%clk 0:00:05]}  dxe5 {[%clk 0:00:17]} 33. a3 {[%clk 0:00:05]}  Qd7 {[%clk 0:00:15]} 34. h4 {[%clk 0:00:06]}  g4 {[%clk 0:00:15]} 35. Qf2 {[%clk 0:00:05]}  Rg6 {[%clk 0:00:14]} 36. Rg1 {[%clk 0:00:04]}  Qd4 {[%clk 0:00:13]} 37. Qe2 {[%clk 0:00:04]} 0-1


[Site "https://www.chess.com"]

[Event "Titled Tuesday Blitz August 22 Late 2023"]
[White "Rizzo, Tobias"]
[Black "rionelG"]
[WhiteFideId "30942691"]
[WhiteElo "2493"]
[BlackElo "2342"]
[Result "1-0"]
[Round "4"]
[TimeControl "180+1"]
[Date "2023.08.22"]
[WhiteClock "0:00:05"]
[BlackClock "0:00:00"]
[Board "154"]

1. d4 {[%clk 0:03:00]}  Nf6 {[%clk 0:02:28]} 2. Bg5 {[%clk 0:02:58]}  d5 {[%clk 0:02:26]} 3. Bxf6 {[%clk 0:02:55]}  exf6 {[%clk 0:02:27]} 4. e3 {[%clk 0:02:56]}  c6 {[%clk 0:02:21]} 5. g3 {[%clk 0:02:56]}  Bd6 {[%clk 0:02:20]} 6. Bg2 {[%clk 0:02:57]}  O-O {[%clk 0:02:20]} 7. Ne2 {[%clk 0:02:57]}  Bg4 {[%clk 0:02:20]} 8. O-O {[%clk 0:02:56]}  Nd7 {[%clk 0:02:18]} 9. Nd2 {[%clk 0:02:56]}  Re8 {[%clk 0:02:15]} 10. h3 {[%clk 0:02:54]}  Bxe2 {[%clk 0:02:15]} 11. Qxe2 {[%clk 0:02:54]}  f5 {[%clk 0:02:15]} 12. Qd3 {[%clk 0:02:49]}  g6 {[%clk 0:02:14]} 13. c4 {[%clk 0:02:49]}  Nf6 {[%clk 0:02:13]} 14. cxd5 {[%clk 0:02:45]}  Nxd5 {[%clk 0:02:11]} 15. a3 {[%clk 0:02:40]}  Bf8 {[%clk 0:02:04]} 16. b4 {[%clk 0:02:36]}  Rc8 {[%clk 0:01:52]} 17. Nb3 {[%clk 0:02:31]}  h5 {[%clk 0:01:42]} 18. h4 {[%clk 0:02:28]}  Nf6 {[%clk 0:01:29]} 19. Na5 {[%clk 0:02:20]}  Qd7 {[%clk 0:01:13]} 20. Rac1 {[%clk 0:02:16]}  Ne4 {[%clk 0:01:12]} 21. Nc4 {[%clk 0:01:57]}  Bg7 {[%clk 0:01:05]} 22. Nd2 {[%clk 0:01:56]}  c5 {[%clk 0:00:45]} 23. bxc5 {[%clk 0:01:27]}  Nxc5 {[%clk 0:00:41]} 24. Qb1 {[%clk 0:01:27]}  b6 {[%clk 0:00:14]} 25. Rfd1 {[%clk 0:01:14]}  Ne6 {[%clk 0:00:12]} 26. Nc4 {[%clk 0:00:46]}  Qa4 {[%clk 0:00:11]} 27. Nd6 {[%clk 0:00:41]}  Rxc1 {[%clk 0:00:11]} 28. Rxc1 {[%clk 0:00:37]}  Rd8 {[%clk 0:00:11]} 29. Nb5 {[%clk 0:00:33]}  Bf8 {[%clk 0:00:09]} 30. Bc6 {[%clk 0:00:31]}  Rc8 {[%clk 0:00:08]} 31. Nc7 {[%clk 0:00:28]}  Qxa3 {[%clk 0:00:06]} 32. Nxe6 {[%clk 0:00:28]}  fxe6 {[%clk 0:00:06]} 33. Rc2 {[%clk 0:00:23]}  Qd6 {[%clk 0:00:06]} 34. Bf3 {[%clk 0:00:18]}  Rxc2 {[%clk 0:00:05]} 35. Qxc2 {[%clk 0:00:19]}  e5 {[%clk 0:00:05]} 36. dxe5 {[%clk 0:00:18]}  Qxe5 {[%clk 0:00:06]} 37. Qa2+ {[%clk 0:00:19]}  Kh8 {[%clk 0:00:04]} 38. Qxa7 {[%clk 0:00:20]}  b5 {[%clk 0:00:04]} 39. Qa8 {[%clk 0:00:18]}  Kg7 {[%clk 0:00:02]} 40. Qb7+ {[%clk 0:00:18]}  Be7 {[%clk 0:00:02]} 41. Bd5 {[%clk 0:00:18]}  b4 {[%clk 0:00:01]} 42. Kg2 {[%clk 0:00:18]}  Qd6 {[%clk 0:00:01]} 43. Bb3 {[%clk 0:00:18]}  Qc5 {[%clk 0:00:01]} 44. Qd7 {[%clk 0:00:13]}  Qd6 {[%clk 0:00:02]} 45. Qe8 {[%clk 0:00:12]}  Kf6 {[%clk 0:00:01]} 46. Qf7+ {[%clk 0:00:11]}  Ke5 {[%clk 0:00:00]} 47. Bc2 {[%clk 0:00:05]} 1-0


[Site "https://www.chess.com"]

[Event "Titled Tuesday Blitz August 22 Late 2023"]
[White "Michalczak, Thomas"]
[Black "Bullen, Alex"]
[WhiteFideId "4622634"]
[BlackFideId "1801627"]
[WhiteElo "2488"]
[BlackElo "2341"]
[Result "0-1"]
[Round "4"]
[TimeControl "180+1"]
[Date "2023.08.22"]
[WhiteClock "0:01:51"]
[BlackClock "0:00:59"]
[Board "155"]

1. e4 {[%clk 0:03:00]}  c6 {[%clk 0:02:59]} 2. d4 {[%clk 0:03:00]}  d5 {[%clk 0:03:00]} 3. Nc3 {[%clk 0:03:00]}  dxe4 {[%clk 0:03:00]} 4. Nxe4 {[%clk 0:03:01]}  Bf5 {[%clk 0:03:01]} 5. Ng3 {[%clk 0:03:02]}  Bg6 {[%clk 0:03:01]} 6. h4 {[%clk 0:03:02]}  h6 {[%clk 0:03:02]} 7. Nf3 {[%clk 0:03:03]}  Nd7 {[%clk 0:03:02]} 8. h5 {[%clk 0:03:03]}  Bh7 {[%clk 0:03:03]} 9. Bd3 {[%clk 0:03:02]}  Bxd3 {[%clk 0:03:04]} 10. Qxd3 {[%clk 0:03:02]}  e6 {[%clk 0:03:04]} 11. Bf4 {[%clk 0:03:03]}  Bb4+ {[%clk 0:03:04]} 12. c3 {[%clk 0:03:01]}  Be7 {[%clk 0:03:05]} 13. c4 {[%clk 0:02:55]}  Ngf6 {[%clk 0:03:04]} 14. O-O-O {[%clk 0:02:52]}  b5 {[%clk 0:03:04]} 15. Kb1 {[%clk 0:02:47]}  bxc4 {[%clk 0:03:02]} 16. Qxc4 {[%clk 0:02:48]}  Nd5 {[%clk 0:03:01]} 17. Bd2 {[%clk 0:02:39]}  O-O {[%clk 0:02:53]} 18. Qxc6 {[%clk 0:02:32]}  Rc8 {[%clk 0:02:31]} 19. Qa4 {[%clk 0:02:30]}  N7b6 {[%clk 0:02:27]} 20. Qb3 {[%clk 0:02:27]}  Rb8 {[%clk 0:02:15]} 21. Ne4 {[%clk 0:02:21]}  Nd7 {[%clk 0:02:03]} 22. Qd3 {[%clk 0:02:09]}  Qb6 {[%clk 0:01:59]} 23. Bc1 {[%clk 0:02:09]}  Nb4 {[%clk 0:01:53]} 24. Qb3 {[%clk 0:02:05]}  Qc6 {[%clk 0:01:41]} 25. Rhe1 {[%clk 0:02:00]}  Nd5 {[%clk 0:01:33]} 26. Qc2 {[%clk 0:02:00]}  Qa6 {[%clk 0:01:14]} 27. Ka1 {[%clk 0:01:53]}  Rfc8 {[%clk 0:01:10]} 28. Qd3 {[%clk 0:01:51]}  Rxc1+ {[%clk 0:00:59]} 0-1


[Site "https://www.chess.com"]

[Event "Titled Tuesday Blitz August 22 Late 2023"]
[White "Urbina Perez, Juan Antonio"]
[Black "Ardila, Oscar Humberto"]
[WhiteFideId "2217368"]
[BlackFideId "4404742"]
[WhiteElo "2482"]
[BlackElo "2324"]
[Result "1-0"]
[Round "4"]
[TimeControl "180+1"]
[Date "2023.08.22"]
[WhiteClock "0:00:10"]
[BlackClock "0:00:01"]
[Board "158"]

1. e4 {[%clk 0:02:54]}  e5 {[%clk 0:02:59]} 2. Nf3 {[%clk 0:02:52]}  Nf6 {[%clk 0:03:00]} 3. Nxe5 {[%clk 0:02:49]}  d6 {[%clk 0:03:00]} 4. Nf3 {[%clk 0:02:49]}  Nxe4 {[%clk 0:03:01]} 5. c4 {[%clk 0:02:50]}  Be7 {[%clk 0:02:57]} 6. Nc3 {[%clk 0:02:49]}  Nxc3 {[%clk 0:02:57]} 7. bxc3 {[%clk 0:02:48]}  O-O {[%clk 0:02:58]} 8. d4 {[%clk 0:02:49]}  Bg4 {[%clk 0:02:56]} 9. Be2 {[%clk 0:02:49]}  Nd7 {[%clk 0:02:56]} 10. O-O {[%clk 0:02:48]}  Bf6 {[%clk 0:02:55]} 11. h3 {[%clk 0:02:45]}  Bh5 {[%clk 0:02:55]} 12. Rb1 {[%clk 0:02:45]}  b6 {[%clk 0:02:54]} 13. Re1 {[%clk 0:02:45]}  Re8 {[%clk 0:02:54]} 14. Be3 {[%clk 0:02:43]}  c5 {[%clk 0:02:40]} 15. Nd2 {[%clk 0:02:35]}  Bg6 {[%clk 0:02:36]} 16. Rc1 {[%clk 0:02:32]}  Qc7 {[%clk 0:02:23]} 17. Bh5 {[%clk 0:02:15]}  Rad8 {[%clk 0:02:12]} 18. Bxg6 {[%clk 0:02:15]}  hxg6 {[%clk 0:02:13]} 19. Qa4 {[%clk 0:02:07]}  Nf8 {[%clk 0:01:55]} 20. Nf3 {[%clk 0:02:05]}  Ne6 {[%clk 0:01:54]} 21. Red1 {[%clk 0:02:01]}  Qb7 {[%clk 0:01:30]} 22. Qc2 {[%clk 0:01:54]}  Qa6 {[%clk 0:01:28]} 23. Qb3 {[%clk 0:01:53]}  Rc8 {[%clk 0:01:23]} 24. a4 {[%clk 0:01:52]}  Red8 {[%clk 0:01:09]} 25. a5 {[%clk 0:01:51]}  bxa5 {[%clk 0:01:05]} 26. Qa4 {[%clk 0:01:47]}  Kh8 {[%clk 0:00:31]} 27. Rd2 {[%clk 0:01:44]}  cxd4 {[%clk 0:00:25]} 28. cxd4 {[%clk 0:01:45]}  d5 {[%clk 0:00:24]} 29. c5 {[%clk 0:01:40]}  Rb8 {[%clk 0:00:23]} 30. Ra2 {[%clk 0:01:39]}  Rb5 {[%clk 0:00:14]} 31. Rca1 {[%clk 0:01:37]}  Rdb8 {[%clk 0:00:13]} 32. Qc2 {[%clk 0:01:37]}  g5 {[%clk 0:00:10]} 33. Qf5 {[%clk 0:01:35]}  Rb4 {[%clk 0:00:09]} 34. Qxd5 {[%clk 0:01:27]}  a4 {[%clk 0:00:07]} 35. Rd1 {[%clk 0:01:06]}  Qb5 {[%clk 0:00:07]} 36. Nxg5 {[%clk 0:01:05]}  Nxg5 {[%clk 0:00:05]} 37. Bxg5 {[%clk 0:01:05]}  Bxg5 {[%clk 0:00:05]} 38. Qxg5 {[%clk 0:01:06]}  Rb1 {[%clk 0:00:05]} 39. Ra1 {[%clk 0:00:56]}  Rxd1+ {[%clk 0:00:04]} 40. Rxd1 {[%clk 0:00:56]}  Qb3 {[%clk 0:00:05]} 41. Qh5+ {[%clk 0:00:50]}  Kg8 {[%clk 0:00:04]} 42. c6 {[%clk 0:00:50]}  Qc2 {[%clk 0:00:03]} 43. d5 {[%clk 0:00:46]}  Rb2 {[%clk 0:00:03]} 44. Qf3 {[%clk 0:00:41]}  Rb1 {[%clk 0:00:02]} 45. Rxb1 {[%clk 0:00:40]}  Qxb1+ {[%clk 0:00:03]} 46. Kh2 {[%clk 0:00:40]}  Qc2 {[%clk 0:00:03]} 47. d6 {[%clk 0:00:34]}  a3 {[%clk 0:00:04]} 48. d7 {[%clk 0:00:34]}  Qd2 {[%clk 0:00:03]} 49. Qxa3 {[%clk 0:00:31]}  Kh7 {[%clk 0:00:02]} 50. Qg3 {[%clk 0:00:15]}  Qd5 {[%clk 0:00:02]} 51. Qh4+ {[%clk 0:00:12]}  Kg6 {[%clk 0:00:02]} 52. d8=Q {[%clk 0:00:11]}  Qxd8 {[%clk 0:00:01]} 53. Qxd8 {[%clk 0:00:10]} 1-0


[Site "https://www.chess.com"]

[Event "Titled Tuesday Blitz August 22 Late 2023"]
[White "Gogolev, Artem"]
[Black "Antonio, Jorge Carlos"]
[WhiteFideId "4116615"]
[BlackFideId "113190"]
[WhiteElo "2473"]
[BlackElo "2306"]
[Result "1/2-1/2"]
[Round "4"]
[TimeControl "180+1"]
[Date "2023.08.22"]
[WhiteClock "0:00:33"]
[BlackClock "0:01:36"]
[Board "161"]

1. d4 {[%clk 0:02:01]}  d5 {[%clk 0:02:56]} 2. c4 {[%clk 0:02:00]}  c6 {[%clk 0:02:56]} 3. Nf3 {[%clk 0:01:59]}  dxc4 {[%clk 0:02:55]} 4. e3 {[%clk 0:01:58]}  b5 {[%clk 0:02:55]} 5. a4 {[%clk 0:01:58]}  Bb7 {[%clk 0:02:50]} 6. b3 {[%clk 0:01:58]}  e6 {[%clk 0:02:38]} 7. bxc4 {[%clk 0:01:53]}  b4 {[%clk 0:02:37]} 8. a5 {[%clk 0:01:50]}  Na6 {[%clk 0:02:34]} 9. c5 {[%clk 0:01:48]}  Ne7 {[%clk 0:02:29]} 10. Be2 {[%clk 0:01:38]}  g6 {[%clk 0:02:22]} 11. O-O {[%clk 0:01:37]}  Bg7 {[%clk 0:02:17]} 12. Nbd2 {[%clk 0:01:35]}  Nxc5 {[%clk 0:02:03]} 13. Rb1 {[%clk 0:01:31]}  Na6 {[%clk 0:01:59]} 14. Nc4 {[%clk 0:01:27]}  O-O {[%clk 0:01:50]} 15. Bd2 {[%clk 0:01:23]}  c5 {[%clk 0:01:46]} 16. dxc5 {[%clk 0:01:19]}  Be4 {[%clk 0:01:43]} 17. Rc1 {[%clk 0:00:56]}  Rb8 {[%clk 0:01:39]} 18. Nd6 {[%clk 0:00:33]}  Nxc5 {[%clk 0:01:36]} 1/2-1/2


[Site "https://www.chess.com"]

[Event "Titled Tuesday Blitz August 22 Late 2023"]
[White "Fernandez Lopez, Ruben"]
[Black "Cardozo Munar, Carlos Eduardo"]
[WhiteFideId "24518298"]
[BlackFideId "4409477"]
[WhiteElo "2469"]
[BlackElo "2287"]
[Result "1-0"]
[Round "4"]
[TimeControl "180+1"]
[Date "2023.08.22"]
[WhiteClock "0:02:21"]
[BlackClock "0:00:46"]
[Board "164"]

1. e4 {[%clk 0:02:59]}  e6 {[%clk 0:02:52]} 2. d4 {[%clk 0:02:58]}  d5 {[%clk 0:02:53]} 3. exd5 {[%clk 0:02:58]}  exd5 {[%clk 0:02:52]} 4. c4 {[%clk 0:02:59]}  Nc6 {[%clk 0:02:52]} 5. Nc3 {[%clk 0:02:58]}  Bb4 {[%clk 0:02:52]} 6. Nf3 {[%clk 0:02:58]}  Nf6 {[%clk 0:02:52]} 7. Bd3 {[%clk 0:02:57]}  O-O {[%clk 0:02:52]} 8. O-O {[%clk 0:02:56]}  dxc4 {[%clk 0:02:51]} 9. Bxc4 {[%clk 0:02:56]}  Bg4 {[%clk 0:02:52]} 10. Be3 {[%clk 0:02:55]}  Re8 {[%clk 0:02:50]} 11. d5 {[%clk 0:02:51]}  Ne5 {[%clk 0:02:42]} 12. Be2 {[%clk 0:02:47]}  Bxc3 {[%clk 0:02:40]} 13. bxc3 {[%clk 0:02:47]}  Nxf3+ {[%clk 0:02:39]} 14. Bxf3 {[%clk 0:02:44]}  Bxf3 {[%clk 0:02:37]} 15. Qxf3 {[%clk 0:02:45]}  Qxd5 {[%clk 0:02:36]} 16. Qg3 {[%clk 0:02:45]}  Qc6 {[%clk 0:02:22]} 17. Bd4 {[%clk 0:02:45]}  Rad8 {[%clk 0:02:23]} 18. Rfe1 {[%clk 0:02:44]}  Rxe1+ {[%clk 0:02:22]} 19. Rxe1 {[%clk 0:02:45]}  a5 {[%clk 0:01:59]} 20. h3 {[%clk 0:02:43]}  b5 {[%clk 0:01:58]} 21. Bxf6 {[%clk 0:02:43]}  Qxf6 {[%clk 0:01:57]} 22. Qxc7 {[%clk 0:02:43]}  a4 {[%clk 0:01:47]} 23. Qc5 {[%clk 0:02:41]}  h6 {[%clk 0:01:44]} 24. Qxb5 {[%clk 0:02:40]}  Qxc3 {[%clk 0:01:40]} 25. Re8+ {[%clk 0:02:38]}  Rxe8 {[%clk 0:01:41]} 26. Qxe8+ {[%clk 0:02:38]}  Kh7 {[%clk 0:01:41]} 27. Qxf7 {[%clk 0:02:39]}  a3 {[%clk 0:01:40]} 28. g3 {[%clk 0:02:36]}  Qe1+ {[%clk 0:01:37]} 29. Kg2 {[%clk 0:02:36]}  Qe4+ {[%clk 0:01:38]} 30. Kh2 {[%clk 0:02:37]}  Qc2 {[%clk 0:01:38]} 31. h4 {[%clk 0:02:36]}  Qe2 {[%clk 0:01:32]} 32. Qf5+ {[%clk 0:02:34]}  Kh8 {[%clk 0:01:33]} 33. Kg2 {[%clk 0:02:34]}  h5 {[%clk 0:01:32]} 34. Qf8+ {[%clk 0:02:33]}  Kh7 {[%clk 0:01:33]} 35. Qxa3 {[%clk 0:02:34]}  Qe4+ {[%clk 0:01:31]} 36. Qf3 {[%clk 0:02:32]}  Qg6 {[%clk 0:01:27]} 37. Qe2 {[%clk 0:02:27]}  Qc6+ {[%clk 0:01:26]} 38. Kh2 {[%clk 0:02:26]}  g6 {[%clk 0:01:26]} 39. a3 {[%clk 0:02:25]}  Qa4 {[%clk 0:01:26]} 40. Qb2 {[%clk 0:02:24]}  Qe4 {[%clk 0:01:20]} 41. Qb4 {[%clk 0:02:23]}  Qf3 {[%clk 0:01:19]} 42. Qc5 {[%clk 0:02:22]}  Qb3 {[%clk 0:01:17]} 43. Qa7+ {[%clk 0:02:22]}  Kh6 {[%clk 0:01:18]} 44. a4 {[%clk 0:02:23]}  Qa2 {[%clk 0:01:02]} 45. a5 {[%clk 0:02:22]}  Qa4 {[%clk 0:00:57]} 46. a6 {[%clk 0:02:22]}  Qa5 {[%clk 0:00:56]} 47. Qe3+ {[%clk 0:02:21]}  Kh7 {[%clk 0:00:54]} 48. a7 {[%clk 0:02:21]}  Qa2 {[%clk 0:00:51]} 49. Qe7+ {[%clk 0:02:20]}  Kh6 {[%clk 0:00:51]} 50. Qf8+ {[%clk 0:02:20]}  Kh7 {[%clk 0:00:46]} 51. a8=Q {[%clk 0:02:21]} 1-0


[Site "https://www.chess.com"]